bitfinex-derivatives/quotes_SOLF0:USTF0_20250821
["timestamp","ask_amount","ask_price","bid_price","bid_amount"]
[1755749702120,2.74,187.83,187.75,6.54764501]
[1755749702320,2.74,187.83,187.75,2.09]
[1755749704623,2.74,187.8,187.73,4.45764501]
[1755749704812,2.74,187.8,187.72,4.45764501]
[1755749705013,2.74,187.8,187.72,5.3267]
[1755749705212,2.74,187.8,187.73,2.09]
[1755749705413,2.26927962,187.84,187.73,6.56605874]
[1755749705617,2.74,187.83,187.74,2.09]
[1755749705916,2.74,187.86,187.75,6.56605874]
[1755749706117,2.74,187.86,187.76,6.56605874]
[1755749706323,2.74,187.86,187.77,5.3251]
[1755749706521,2.74,187.86,187.76,6.56605874]
[1755749706727,2.74,187.86,187.76,2.09]
[1755749707120,2.26927962,187.84,187.76,2.09]
[1755749707424,2.74,187.83,187.75,4.47605874]
[1755749707821,2.74,187.83,187.74,8.83533836]
[1755749709223,2.74,187.83,187.74,6.56605874]
[1755749710422,2.26927962,187.81,187.73,6.74533836]
[1755749710623,2.74,187.8,187.71,6.56605874]
[1755749711528,2.74,187.8,187.71,11.89285874]
[1755749712124,2.74,187.8,187.72,2.09]
[1755749712424,2.74,187.77,187.68,4.47605874]
[1755749712619,2.74,187.77,187.69,4.47605874]
[1755749713222,2.74,187.77,187.68,4.47605874]
[1755749714331,2.74,187.77,187.69,6.56605874]
[1755749714532,2.74,187.77,187.69,11.89345874]
[1755749715629,5.00927962,187.81,187.71,6.74533836]
[1755749715837,5.00927962,187.81,187.72,2.09]
[1755749716224,2.26927962,187.81,187.73,5.3261]
[1755749716429,5.00927962,187.78,187.69,6.56605874]
[1755749717225,2.74,187.78,187.69,6.56605874]
[1755749717426,2.74,187.78,187.69,11.89335874]
[1755749717836,2.74,187.78,187.7,2.09]
[1755749721539,2.26927962,187.78,187.7,2.09]
[1755749721743,2.74,187.77,187.7,2.09]
[1755749726836,5.27927962,187.8,187.7,2.09]
[1755749727142,3.01,187.83,187.74,2.09]
[1755749727346,3.01,187.83,187.76,2.09]
[1755749727940,3.01,187.83,187.76,7.4155]
[1755749729046,3.01,187.83,187.76,2.09]
[1755749731647,2.26927962,187.8,187.72,6.56605874]
[1755749731845,3.01,187.79,187.72,6.56605874]
[1755749732146,3.01,187.79,187.69,5.97502598]
[1755749732147,3.01,187.79,187.7,4.47605874]
[1755749733152,3.01,187.79,187.71,2.09]
[1755749733850,2.26927962,187.8,187.72,2.09]
[1755749734546,3.01,187.79,187.72,2.09]
[1755749737048,5.27927962,187.85,187.75,2.09]
[1755749738055,5.27927962,187.85,187.76,5.3253]
[1755749738351,3.01,187.85,187.75,2.09]
[1755749738554,3.01,187.85,187.78,2.09]
[1755749739953,3.01,187.85,187.76,5.3254]
[1755749740353,3.01,187.85,187.75,2.09]
[1755749741153,3.01,187.85,187.75,7.4158]
[1755749741953,3.01,187.85,187.76,5.3255]
[1755749742153,3.01,187.85,187.77,2.09]
[1755749742851,3.01,187.85,187.77,7.4152]
[1755749743251,3.01,187.85,187.77,2.09]
[1755749743451,3.01,187.85,187.74,9.68527962]
[1755749744753,3.01,187.85,187.75,5.3258]
[1755749745454,3.01,187.85,187.74,14.16143836]
[1755749748056,3.01,187.85,187.75,7.4158]
[1755749748555,3.01,187.85,187.75,2.09]
[1755749748753,3.01,187.82,187.73,4.47605874]
[1755749748950,3.01,187.82,187.72,8.83533836]
[1755749749855,2.26927962,187.8,187.72,2.09]
[1755749750049,3.01,187.79,187.72,2.09]
[1755749763963,2.26927962,187.87,187.75,2.09]
[1755749764168,2.97,187.88,187.79,5.3246]
[1755749764365,2.97,187.88,187.81,2.09]
[1755749764668,2.97,187.88,187.82,1.94501715]
[1755749764865,2.97,187.91,187.85,2.09]
[1755749765166,2.26927962,187.92,187.87,2.09]
[1755749765366,2.26927962,187.92,187.88,1.94501715]
[1755749765571,2.97,187.91,187.89,1.94501715]
[1755749765864,2.26927962,187.96,187.9,1.94315041]
[1755749766062,2.26927962,187.96,187.88,2.09]
[1755749766063,2.97,187.94,187.88,2.09]
[1755749766267,2.97,187.94,187.89,1.94305863]
[1755749766467,2.97,187.93,187.9,1.94305863]
[1755749766666,2.26927962,187.93,187.85,4.35927962]
[1755749766970,2.26927962,187.93,187.86,1.94171327]
[1755749766971,2.97,187.92,187.86,1.94171327]
[1755749767162,2.97,187.91,187.87,1.94171327]
[1755749767359,2.26927962,187.9,187.81,4.47605874]
[1755749767562,2.97,187.85,187.76,2.09]
[1755749768067,2.26927962,187.83,187.76,2.09]
[1755749768269,2.97,187.82,187.76,2.09]
[1755749769566,2.97,187.82,187.73,2.79]
[1755749771169,2.26927962,187.8,187.73,2.79]
[1755749773071,2.26927962,187.8,187.73,5.3263]
[1755749773271,2.26927962,187.8,187.74,2.79]
[1755749776173,5.23927962,187.8,187.74,2.79]
[1755749776576,2.26927962,187.8,187.74,2.79]
[1755749777478,2.97,187.79,187.74,2.79]
[1755749777679,2.97,187.78,187.74,2.79]
[1755749778579,2.26927962,187.8,187.72,2.79]
[1755749778978,2.97,187.82,187.72,7.26064653]
[1755749779183,2.26927962,187.83,187.76,5.3255]
[1755749779378,2.26927962,187.83,187.77,2.79]
[1755749779879,2.97,187.86,187.77,2.79]
[1755749780080,2.26927962,187.84,187.77,2.79]
[1755749780980,2.97,187.8,187.74,2.79]
[1755749781278,2.97,187.8,187.71,2.79]
[1755749781778,2.26927962,187.81,187.74,5.3259]
[1755749781983,2.26927962,187.81,187.75,2.79]
[1755749782579,2.97,187.8,187.73,5.3263]
[1755749783483,2.97,187.8,187.72,8.1166]
[1755749784486,2.97,187.8,187.73,5.3263]
[1755749784785,2.26927962,187.79,187.72,2.79]
[1755749785085,2.97,187.78,187.68,4.47064653]
[1755749785284,2.97,187.78,187.66,6.90218536]
[1755749785285,2.26927962,187.76,187.69,2.79]
[1755749785993,2.26927962,187.76,187.69,8.1174]
[1755749787686,2.81,187.75,187.69,2.79]
[1755749789595,2.81,187.75,187.66,3.196439]
[1755749789797,2.81,187.75,187.66,6.106439]
[1755749790087,2.81,187.75,187.66,3.83715938]
[1755749790295,2.81,187.75,187.67,5.328]
[1755749790994,2.81,187.75,187.68,5.3278]
[1755749791493,2.81,187.75,187.66,3.83715938]
[1755749791494,2.26927962,187.73,187.66,2.91]
[1755749792096,5.07927962,187.73,187.66,2.91]
[1755749807199,5.07927962,187.73,187.66,8.2383]
[1755749807391,5.07927962,187.73,187.66,2.91]
[1755749809300,2.81,187.76,187.68,2.91]
[1755749809690,2.81,187.76,187.7,2.91]
[1755749809897,2.81,187.8,187.71,2.26927962]
[1755749810100,2.81,187.8,187.72,2.91]
[1755749810402,2.81,187.8,187.73,2.91]
[1755749810903,2.81,187.8,187.73,8.2362]
[1755749812201,2.81,187.8,187.73,2.91]
[1755749812592,2.81,187.8,187.73,8.2362]
[1755749812794,2.81,187.8,187.74,2.91]
[1755749813502,2.81,187.8,187.74,8.236]
[1755749815698,2.81,187.8,187.71,2.26927962]
[1755749815699,2.26927962,187.8,187.71,2.91]
[1755749816002,2.26927962,187.76,187.71,2.91]
[1755749816196,2.76,187.74,187.71,2.91]
[1755749816401,2.76,187.74,187.68,2.9]
[1755749816791,2.26927962,187.76,187.68,8.2275]
[1755749816997,5.02927962,187.76,187.68,2.9]
[1755749818900,5.02927962,187.76,187.69,5.3275]
[1755749819202,5.02927962,187.76,187.68,2.9]
[1755749820099,5.02927962,187.76,187.69,5.3273]
[1755749820503,5.02927962,187.76,187.66,4.47064653]
[1755749820803,2.76,187.75,187.67,2.9]
[1755749822304,2.76,187.75,187.68,5.3278]
[1755749822504,2.76,187.75,187.67,2.9]
[1755749823609,2.76,187.75,187.68,5.3275]
[1755749824012,2.76,187.75,187.67,2.9]
[1755749824616,2.76,187.75,187.69,5.3274]
[1755749825112,2.76,187.75,187.68,5.3276]
[1755749825309,2.26927962,187.74,187.67,7.37064653]
[1755749825804,2.26927962,187.74,187.67,8.2279]
[1755749826199,2.26927962,187.74,187.68,5.3278]
[1755749826405,2.26927962,187.74,187.67,2.9]
[1755749827206,2.76,187.73,187.69,8.2275]
[1755749827514,2.76,187.73,187.7,2.9]
[1755749828714,2.26927962,187.74,187.7,2.9]
[1755749828901,5.02927962,187.74,187.7,2.9]
[1755749829307,2.76,187.73,187.7,2.9]
[1755749831803,2.76,187.77,187.7,2.9]
[1755749833006,2.76,187.77,187.71,5.3268]
[1755749833915,2.76,187.77,187.73,2.9]
[1755749834213,2.76,187.76,187.73,2.9]
[1755749838118,2.26927962,187.79,187.73,2.9]
[1755749838322,2.76,187.8,187.73,2.9]
[1755749838517,5.02927962,187.83,187.74,2.26927962]
[1755749838727,5.02927962,187.83,187.76,5.3254]
[1755749839018,2.76,187.83,187.77,2.9]
[1755749839814,2.76,187.83,187.78,5.3247]
[1755749840020,2.76,187.83,187.8,2.9]
[1755749840411,2.26927962,187.86,187.79,8.2245]
[1755749842221,2.76,187.85,187.79,2.9]
[1755749842624,2.76,187.85,187.79,8.2247]
[1755749845332,2.26927962,187.87,187.8,2.9]
[1755749845735,2.76,187.86,187.8,2.9]
[1755749848334,2.76,187.86,187.8,8.2244]
[1755749848932,2.76,187.86,187.8,2.9]
[1755749856140,2.26927962,187.87,187.8,8.2242]
[1755749856344,2.75,187.9,187.81,3.03]
[1755749856345,5.01927962,187.9,187.81,3.03]
[1755749857042,5.01927962,187.9,187.82,5.3236]
[1755749857536,2.75,187.89,187.82,5.3236]
[1755749858544,2.75,187.89,187.83,3.03]
[1755749863445,2.75,187.89,187.83,8.3535]
[1755749864047,2.75,187.89,187.83,5.3235]
[1755749864449,358.08,187.98,187.85,2.26927962]
[1755749864450,2.75,187.94,187.85,2.26927962]
[1755749864648,2.75,187.94,187.86,3.03]
[1755749864954,0.03845123,187.88,187.87,8.3524]
[1755749865153,2.75,187.94,187.87,3.03]
[1755749865340,2.75,187.94,187.83,2.26927962]
[1755749865341,2.75,187.94,187.88,2.26927962]
[1755749865545,2.75,187.94,187.89,5.3217]
[1755749865745,2.75,187.94,187.91,3.03]
[1755749865954,2.75,187.92,187.86,3.03]
[1755749867448,2.75,187.92,187.86,8.3527]
[1755749867644,2.75,187.92,187.86,3.03]
[1755749868253,2.75,187.92,187.88,3.03]
[1755749869649,2.75,187.92,187.89,3.03]
[1755749870152,5.01927962,187.96,187.87,5.3223]
[1755749870353,2.75,187.95,187.87,5.3223]
[1755749871656,2.75,187.95,187.88,3.03]
[1755749872248,2.75,187.98,187.92,5.321]
[1755749872452,2.75,187.98,187.92,8.351]
[1755749872653,2.75,187.98,187.92,3.03]
[1755749874157,2.75,187.98,187.92,8.351]
[1755749875358,2.75,187.98,187.92,3.03]
[1755749878556,2.99,187.95,187.87,2.95]
[1755749880351,2.99,187.89,187.83,2.95]
[1755749880556,2.99,187.86,187.79,2.95]
[1755749885265,2.99,187.86,187.79,8.2747]
[1755749885466,2.99,187.86,187.79,2.95]
[1755749887268,2.99,187.86,187.79,8.2747]
[1755749887469,2.99,187.86,187.8,2.95]
[1755749888668,5.25927962,187.9,187.82,2.95]
[1755749890564,2.99,187.89,187.82,2.95]
[1755749890774,2.99,187.86,187.76,9.68992615]
[1755749890973,2.99,187.83,187.76,5.21927962]
[1755749891662,2.99,187.83,187.76,2.95]
[1755749895672,2.99,187.83,187.74,2.26927962]
[1755749895869,2.99,187.83,187.74,5.21927962]
[1755749896474,2.99,187.83,187.75,5.3257]
[1755749898578,2.99,187.83,187.76,2.95]
[1755749899770,2.99,187.83,187.76,8.2756]
[1755749900477,2.99,187.83,187.76,2.95]
[1755749901070,2.99,187.83,187.76,8.2755]
[1755749901876,2.99,187.83,187.76,2.95]
[1755749902578,2.99,187.81,187.72,2.95]
[1755749903166,2.26927962,187.79,187.72,2.95]
[1755749903366,2.99,187.78,187.72,2.95]
[1755749903871,2.99,187.78,187.69,357.72]
[1755749904072,2.99,187.78,187.69,360.67]
[1755749904273,2.99,187.78,187.69,2.95]
[1755749905577,2.99,187.75,187.66,5.21927962]
[1755749905975,2.99,187.75,187.66,2.95]
[1755749908776,2.99,187.75,187.64,7.59817962]
[1755749909774,2.99,187.75,187.65,8.2986]
[1755749916082,2.82,187.72,187.63,0.92725819]
[1755749921283,2.82,187.72,187.62,5.23927962]
[1755749922083,2.26927962,187.69,187.6,3.89744353]
[1755749922291,2.82,187.68,187.6,2.97]
[1755749922582,2.82,187.68,187.58,2.26927962]
[1755749923087,2.82,187.65,187.57,2.97]
[1755749924485,2.82,187.65,187.55,0.92762895]
[1755749924686,358.14,187.73,187.55,0.92762895]
[1755749924687,2.82,187.63,187.55,0.92762895]
[1755749924888,2.82,187.63,187.56,2.97]
[1755749926183,2.82,187.63,187.53,2.26927962]
[1755749926380,2.82,187.63,187.54,2.97]
[1755749927181,2.82,187.63,187.55,2.97]
[1755749927783,2.82,187.63,187.55,8.3015]
[1755749927984,2.82,187.63,187.55,10.57077962]
[1755749928181,2.82,187.63,187.55,2.26927962]
[1755749928382,2.82,187.63,187.57,2.97]
[1755749928589,2.26927962,187.65,187.57,2.97]
[1755749929492,2.82,187.66,187.58,2.97]
[1755749930791,2.82,187.64,187.58,2.97]
[1755749931189,2.82,187.64,187.55,2.97]
[1755749933298,2.82,187.67,187.57,2.97]
[1755749936798,2.82,187.67,187.58,2.8]
[1755749940303,133.66927962,187.71,187.6,2.8]
[1755749940507,2.88,187.7,187.6,2.8]
[1755749942612,134.28,187.71,187.62,2.8]
[1755749943608,2.88,187.7,187.62,2.8]
[1755749943918,2.88,187.69,187.62,2.8]
[1755749945013,2.26927962,187.66,187.56,5.06927962]
[1755749945214,2.88,187.65,187.56,5.06927962]
[1755749945515,2.88,187.65,187.56,2.8]
[1755749946218,2.26927962,187.63,187.56,2.8]
[1755749946417,2.88,187.62,187.56,2.8]
[1755749947909,131.4,187.71,187.53,7.27064653]
[1755749947910,5.14927962,187.61,187.53,7.27064653]
[1755749948109,5.14927962,187.61,187.54,4.47064653]
[1755749948310,5.14927962,187.61,187.53,7.27064653]
[1755749950223,5.14927962,187.61,187.54,4.47064653]
[1755749950516,5.14927962,187.61,187.53,2.8]
[1755749950517,2.88,187.72,187.56,2.26927962]
[1755749950722,2.26927962,187.66,187.57,2.8]
[1755749950927,2.88,187.65,187.57,2.8]
[1755749952524,2.88,187.65,187.58,2.8]
[1755749961835,2.88,187.63,187.55,4.47064653]
[1755749962236,2.88,187.63,187.56,4.47064653]
[1755749963133,2.88,187.63,187.55,4.47064653]
[1755749963835,2.88,187.63,187.54,7.27064653]
[1755749964233,2.88,187.63,187.57,0.03460978]
[1755749964433,2.88,187.59,187.57,0.03460978]
[1755749966638,0.03807621,187.6,187.57,0.03460978]
[1755749966833,3.04807621,187.6,187.57,0.03460978]
[1755749967040,3.04807621,187.6,187.57,2.93460978]
[1755749968131,0.03807621,187.6,187.57,0.03460978]
[1755749968534,3.04807621,187.6,187.57,0.03460978]
[1755749968945,3.04807621,187.6,187.57,2.93460978]
[1755749969346,3.01,187.59,187.57,0.03460978]
[1755749970944,0.03807621,187.6,187.57,2.93460978]
[1755749971143,3.04807621,187.6,187.57,2.93460978]
[1755749971444,0.03807621,187.6,187.58,2.9]
[1755749971637,3.04807621,187.6,187.57,0.03460978]
[1755749972845,3.01,187.59,187.57,0.03460978]
[1755749973641,0.03807621,187.6,187.57,0.03460978]
[1755749974056,3.01,187.58,187.57,0.03460978]
[1755749979444,0.03807621,187.6,187.57,0.03460978]
[1755749979651,3.01,187.59,187.57,0.03460978]
[1755749979845,0.03807621,187.6,187.57,0.03460978]
[1755749980051,0.03807621,187.6,187.57,2.93460978]
[1755749980250,3.01,187.59,187.57,0.03460978]
[1755749980456,3.01,187.58,187.57,0.03460978]
[1755749980957,0.03807621,187.6,187.57,2.93460978]
[1755749981148,0.03807621,187.6,187.58,2.9]
[1755749981454,3.04807621,187.6,187.57,0.03460978]
[1755749982347,3.01,187.59,187.57,0.03460978]
[1755749983342,0.03807621,187.6,187.57,0.03460978]
[1755749983549,0.03807621,187.6,187.58,2.9]
[1755749984548,0.03807621,187.6,187.59,2.9]
[1755749992053,0.03807621,187.6,187.59,7.37064653]
[1755749998270,0.03807621,187.6,187.59,2.9]
[1755749999864,131.36,187.67,187.6,2.84]
[1755750000166,131.36,187.67,187.6,7.31064653]
[1755750000966,131.36,187.67,187.6,2.84]
[1755750000967,2.91,187.66,187.6,2.84]
[1755750001161,2.91,187.66,187.62,0.0358438]
[1755750001468,2.91,187.65,187.62,0.0358438]
[1755750001664,2.91,187.64,187.62,0.0358438]
[1755750001967,2.91,187.65,187.62,0.0358438]
[1755750002161,2.91,187.64,187.62,0.0358438]
[1755750002760,2.91,187.66,187.62,0.0358438]
[1755750002969,2.91,187.65,187.62,2.8758438]
[1755750003964,2.91,187.74,187.62,4.50649033]
[1755750004167,2.91,187.77,187.68,2.84]
[1755750004667,2.91,187.77,187.69,4.85036673]
[1755750004971,5.17927962,187.77,187.71,0.03601195]
[1755750005168,2.91,187.76,187.72,4.85036673]
[1755750005466,2.91,187.76,187.73,4.85036673]
[1755750005669,2.91,187.74,187.71,0.03601195]
[1755750005869,2.91,187.72,187.71,0.03601195]
[1755750006068,2.91,187.72,187.71,4.88304717]
[1755750007264,2.91,187.72,187.71,0.03601195]
[1755750007671,2.91,187.72,187.71,4.87948421]
[1755750008671,2.91,187.72,187.71,0.03601195]
[1755750012070,2.91,187.73,187.71,4.87511112]
[1755750012265,2.91,187.76,187.72,4.83909917]
[1755750012572,2.91,187.76,187.73,4.83682458]
[1755750012769,2.91,187.76,187.71,0.03601195]
[1755750013071,2.26927962,187.77,187.73,2.84]
[1755750013072,5.17927962,187.77,187.73,2.84]
[1755750013268,2.91,187.77,187.74,7.67678721]
[1755750013567,2.26927962,187.8,187.75,4.83678721]
[1755750013767,2.26927962,187.8,187.74,2.84]
[1755750013768,2.91,187.79,187.74,2.84]
[1755750013969,2.91,187.79,187.75,7.67381915]
[1755750014168,2.91,187.79,187.71,2.26927962]
[1755750014373,2.91,187.79,187.75,0.04062694]
[1755750014763,2.91,187.76,187.75,0.04062694]
[1755750016174,2.91,187.76,187.65,5.10927962]
[1755750016377,2.91,187.73,187.66,4.83087478]
[1755750016569,2.91,187.73,187.67,4.83087478]
[1755750016768,2.91,187.72,187.68,4.83087478]
[1755750016972,2.91,187.72,187.69,4.83087478]
[1755750017179,2.91,187.72,187.65,5.10927962]
[1755750017479,2.91,187.72,187.66,4.83085925]
[1755750017675,2.26927962,187.74,187.67,4.83085925]
[1755750017876,2.91,187.71,187.68,4.83085925]
[1755750018073,2.91,187.71,187.69,4.83085925]
[1755750018269,2.91,187.71,187.67,2.84]
[1755750018469,2.91,187.71,187.68,4.8457705]
[1755750018664,2.91,187.71,187.67,2.84]
[1755750018870,2.91,187.71,187.68,7.6857705]
[1755750019074,2.91,187.71,187.68,2.84]
[1755750019471,2.26927962,187.74,187.69,4.84601263]
[1755750019677,2.26927962,187.74,187.7,7.68600225]
[1755750019878,5.17927962,187.74,187.7,2.84]
[1755750020274,2.91,187.73,187.67,2.84]
[1755750020476,2.91,187.72,187.68,7.68572603]
[1755750020781,2.91,187.72,187.69,7.68572603]
[1755750021077,2.91,187.72,187.7,4.84572603]
[1755750021274,2.91,187.72,187.66,2.84]
[1755750021480,2.91,187.72,187.68,2.84]
[1755750021681,2.91,187.72,187.69,7.68611424]
[1755750021881,2.91,187.72,187.7,4.84611424]
[1755750022181,2.91,187.73,187.65,5.10927962]
[1755750022478,2.91,187.73,187.67,2.84]
[1755750022776,2.91,187.73,187.68,4.84686469]
[1755750022979,2.91,187.73,187.7,2.84]
[1755750028182,2.91,187.73,187.71,4.95744786]
[1755750028381,2.91,187.73,187.72,4.95744786]
[1755750030485,2.91,187.73,187.7,2.84]
[1755750030681,2.91,187.73,187.71,4.9586026]
[1755750030882,2.91,187.73,187.72,4.9586026]
[1755750032483,2.26927962,187.74,187.72,4.9586026]
[1755750032685,5.01927962,187.76,187.73,4.9586026]
[1755750032876,2.26927962,187.76,187.7,2.84]
[1755750033083,2.75,187.79,187.72,2.92]
[1755750033386,2.75,187.79,187.75,2.92]
[1755750033587,2.75,187.79,187.76,4.95957821]
[1755750033796,2.75,187.79,187.77,4.95957821]
[1755750033984,2.75,187.79,187.78,4.95957821]
[1755750034787,5.01927962,187.81,187.78,4.95957821]
[1755750035086,5.01927962,187.81,187.75,2.92]
[1755750035282,5.01927962,187.81,187.77,2.92]
[1755750035581,5.01927962,187.81,187.78,4.95909719]
[1755750035783,2.75,187.8,187.77,2.92]
[1755750035981,2.75,187.8,187.78,4.9582384]
[1755750036187,2.75,187.8,187.77,2.92]
[1755750036390,2.75,187.8,187.78,4.95815763]
[1755750036590,2.75,187.8,187.77,2.92]
[1755750036792,2.75,187.8,187.78,4.95815763]
[1755750036987,2.75,187.8,187.77,2.92]
[1755750037187,2.75,187.8,187.78,4.95878667]
[1755750037383,2.75,187.8,187.77,2.92]
[1755750037590,162.25981163,187.82,187.78,9.80934173]
[1755750037785,162.25981163,187.82,187.81,2.92]
[1755750037992,162.25981163,187.82,187.81,7.87814403]
[1755750040394,165.00981163,187.82,187.81,4.95814403]
[1755750041191,2.75,187.82,187.81,4.95814403]
[1755750045399,2.75,187.82,187.74,2.92]
[1755750045592,2.75,187.82,187.76,2.92]
[1755750045793,2.75,187.81,187.77,12.72261905]
[1755750046002,2.75,187.81,187.78,4.95477292]
[1755750046196,2.75,187.81,187.79,4.95477292]
[1755750046394,2.75,187.81,187.77,2.92]
[1755750046395,2.75,187.81,187.8,4.95477292]
[1755750049202,2.75,187.81,187.8,4.95821236]
[1755750050497,2.80927962,187.81,187.69,4.47064653]
[1755750050703,5.01927962,187.76,187.7,7.78400896]
[1755750050897,133.32927962,187.76,187.71,4.86400896]
[1755750051092,2.75,187.75,187.72,4.86400896]
[1755750051296,2.75,187.75,187.7,2.92]
[1755750051497,2.75,187.75,187.71,7.73522431]
[1755750051704,2.75,187.75,187.72,4.81522431]
[1755750051899,2.75,187.75,187.71,2.92]
[1755750052100,2.75,187.75,187.72,4.81522431]
[1755750052301,2.75,187.75,187.73,4.815607]
[1755750052502,2.75,187.75,187.71,2.92]
[1755750052805,2.75,187.75,187.72,4.81561744]
[1755750053001,2.75,187.75,187.73,4.81564464]
[1755750053199,2.75,187.75,187.68,2.92]
[1755750053400,2.75,187.75,187.69,4.81589348]
[1755750053599,2.75,187.75,187.7,4.81589348]
[1755750053799,2.75,187.75,187.71,7.73589348]
[1755750054005,2.75,187.75,187.72,4.81589348]
[1755750054204,2.75,187.75,187.73,4.81589348]
[1755750054505,5.01927962,187.74,187.68,2.92]
[1755750054707,5.01927962,187.74,187.7,2.92]
[1755750054909,5.01927962,187.74,187.71,7.73643563]
[1755750055206,5.01927962,187.74,187.72,4.81643563]
[1755750055405,5.01927962,187.74,187.71,2.92]
[1755750055708,5.01927962,187.74,187.72,4.816771]
[1755750055908,5.01927962,187.74,187.71,2.92]
[1755750056116,5.01927962,187.74,187.72,4.81679188]
[1755750056414,5.01927962,187.74,187.71,2.92]
[1755750056609,5.01927962,187.74,187.72,4.81730148]
[1755750056809,5.01927962,187.74,187.71,2.92]
[1755750057013,5.01927962,187.74,187.72,4.81729104]
[1755750057311,133.32927962,187.76,187.73,2.88]
[1755750057708,136.24927962,187.76,187.73,2.88]
[1755750058108,5.18927962,187.76,187.73,2.88]
[1755750058809,2.26927962,187.76,187.69,2.88]
[1755750059010,2.26927962,187.76,187.7,4.81704069]
[1755750059214,5.18927962,187.76,187.72,2.88]
[1755750059415,2.92,187.75,187.72,2.88]
[1755750060413,5.18927962,187.74,187.68,2.88]
[1755750060612,2.26927962,187.7,187.69,4.81714191]
[1755750060911,2.92,187.69,187.65,2.88]
[1755750061110,2.92,187.72,187.67,2.88]
[1755750061306,2.92,187.7,187.68,4.81748528]
[1755750061512,2.92,187.7,187.67,2.88]
[1755750061714,2.92,187.7,187.68,4.81705948]
[1755750061908,2.26927962,187.71,187.67,2.88]
[1755750062114,2.26927962,187.71,187.69,2.88]
[1755750063217,5.18927962,187.74,187.7,2.88]
[1755750063721,2.26927962,187.74,187.72,2.88]
[1755750064121,2.26927962,187.74,187.66,5.3283]
[1755750064416,2.26927962,187.74,187.7,2.88]
[1755750064716,2.26927962,187.74,187.71,7.69648666]
[1755750065020,2.26927962,187.74,187.72,2.88]
[1755750065617,2.26927962,187.77,187.73,4.81614526]
[1755750065822,2.26927962,187.77,187.74,2.88]
[1755750066217,131.06,187.79,187.71,2.88]
[1755750066420,2.92,187.8,187.73,2.88]
[1755750066619,2.26927962,187.82,187.75,2.88]
[1755750066818,2.26927962,187.82,187.76,4.81618329]
[1755750067121,5.18927962,187.82,187.78,2.88]
[1755750067314,5.18927962,187.82,187.79,4.81618329]
[1755750067513,5.18927962,187.82,187.74,5.326]
[1755750067722,5.18927962,187.82,187.79,2.88]
[1755750068114,131.06,187.84,187.75,2.88]
[1755750068321,165.58229358,187.87,187.78,2.88]
[1755750068617,165.58229358,187.87,187.8,2.88]
[1755750068824,165.58229358,187.87,187.82,2.88]
[1755750069121,165.58229358,187.87,187.83,4.81452979]
[1755750069325,165.58229358,187.87,187.86,2.88]
[1755750069521,165.58229358,187.87,187.8,2.26927962]
[1755750069724,167.8515732,187.87,187.81,4.81159353]
[1755750069923,2.92,187.86,187.82,4.81159353]
[1755750070125,2.92,187.86,187.79,2.88]
[1755750070315,2.92,187.82,187.8,4.81111545]
[1755750070513,2.92,187.82,187.75,2.88]
[1755750070720,2.26927962,187.81,187.76,4.81155226]